bitfinex/quotes_SOLUSD_20220130
["timestamp","ask_amount","ask_price","bid_price","bid_amount"]
[1643524378353,0.076918,96.292,96.254,0.25]
[1643524378754,0.326918,96.292,96.254,0.25]
[1643524378954,0.076918,96.292,96.254,0.25]
[1643524379556,0.326918,96.292,96.253,24.103]
[1643524379957,1.77780186,96.292,96.253,24.103]
[1643524380156,1.45088386,96.291,96.253,24.103]
[1643524380359,0.25,96.29,96.251,44.6471122]
[1643524380558,1.45088386,96.288,96.251,44.6471122]
[1643524380757,1.70088386,96.29,96.251,44.6471122]
[1643524380956,0.25,96.287,96.251,44.6471122]
[1643524382157,0.25,96.289,96.251,44.6471122]
[1643524382759,1.70088386,96.289,96.251,44.6471122]
[1643524382959,1.45088386,96.29,96.251,44.6471122]
[1643524383360,0.25,96.289,96.251,44.6471122]
[1643524384661,0.25,96.29,96.251,44.6471122]
[1643524385066,1.70088386,96.29,96.251,44.6471122]
[1643524386363,0.25,96.29,96.251,44.6471122]
[1643524386767,1.70088386,96.29,96.251,44.6471122]
[1643524386964,1.45088386,96.29,96.251,44.6471122]
[1643524387169,0.25,96.289,96.251,44.6471122]
[1643524388366,1.70088386,96.289,96.237,1.59387334]
[1643524388566,1.45088386,96.285,96.23,15.03]
[1643524388768,1.45088386,96.282,96.216,24.425]
[1643524388966,1.45088386,96.275,96.21,30.616]
[1643524389166,0.25,96.284,96.21,30.616]
[1643524389167,1.45088386,96.273,96.22,6.0]
[1643524389366,0.25,96.272,96.221,38.86210198]
[1643524389568,0.25,96.272,96.23,6.0]
[1643524390172,0.25,96.272,96.222,23.2426]
[1643524390369,0.25,96.272,96.223,0.25]
[1643524390571,0.25,96.276,96.23,6.0]
[1643524390773,1.45088386,96.278,96.231,0.25]
[1643524391070,1.45088386,96.28,96.23,6.0]
[1643524391268,1.45088386,96.277,96.231,0.25]
[1643524391671,0.076918,96.292,96.231,0.25]
[1643524391672,1.45088386,96.281,96.231,0.25]
[1643524392071,1.45088386,96.282,96.231,0.25]
[1643524392271,1.45088386,96.283,96.231,0.25]
[1643524392571,1.45088386,96.281,96.221,38.86210198]
[1643524392776,104.2,96.279,96.221,38.86210198]
[1643524392973,1.45088386,96.27,96.221,38.86210198]
[1643524393173,1.45088386,96.265,96.221,38.86210198]
[1643524393374,1.70088386,96.264,96.221,38.86210198]
[1643524393573,1.45088386,96.263,96.221,38.86210198]
[1643524393874,0.25,96.262,96.221,38.86210198]
[1643524394373,0.25,96.262,96.19,16.62387334]
[1643524394574,6.0,96.26,96.19,15.03]
[1643524394775,0.25,96.262,96.19,15.03]
[1643524394974,0.25,96.259,96.19,15.03]
[1643524395378,0.25,96.259,96.191,41.65693952]
[1643524396075,1.45088386,96.259,96.191,41.65693952]
[1643524396276,1.70088386,96.258,96.191,41.65693952]
[1643524396476,0.25,96.258,96.191,41.65693952]
[1643524396677,0.25,96.258,96.178,17.54081979]
[1643524396977,1.45088386,96.253,96.17,15.03]
[1643524397177,6.0,96.25,96.17,15.03]
[1643524397378,0.25,96.249,96.17,15.03]
[1643524397776,0.35,96.249,96.171,42.59579155]
[1643524398179,1.45088386,96.257,96.18,6.0]
[1643524398378,0.25,96.254,96.181,24.7489]
[1643524398578,0.25,96.254,96.19,6.0]
[1643524398778,0.25,96.254,96.191,38.41978065]
[1643524399379,0.35,96.258,96.191,38.16978065]
[1643524399679,104.3,96.258,96.191,38.16978065]
[1643524399879,0.1,96.257,96.191,38.16978065]
[1643524400680,0.1,96.258,96.191,38.16978065]
[1643524400881,0.35,96.258,96.2,6.0]
[1643524401080,0.1,96.258,96.2,6.0]
[1643524401281,0.1,96.258,96.201,0.25]
[1643524401880,0.1,96.258,96.192,23.2297]
[1643524402083,0.1,96.258,96.193,0.25]
[1643524402281,0.35,96.258,96.193,0.25]
[1643524402684,0.35,96.258,96.2,6.0]
[1643524402882,0.35,96.258,96.193,0.25]
[1643524404585,0.35,96.258,96.2,6.0]
[1643524404789,0.35,96.258,96.201,0.25]
[1643524405388,0.35,96.258,96.192,23.2297]
[1643524405611,0.35,96.258,96.193,0.25]
[1643524407015,6.0,96.249,96.193,0.25]
[1643524407412,0.25,96.248,96.193,0.25]
[1643524407813,0.25,96.248,96.192,41.37699946]
[1643524408113,0.1,96.258,96.192,41.37699946]
[1643524408114,0.1,96.258,96.193,0.25]
[1643524408316,1.45088386,96.269,96.193,23.4522]
[1643524408513,1.45088386,96.27,96.193,23.4522]
[1643524408713,1.45088386,96.271,96.193,23.4522]
[1643524408913,1.45088386,96.268,96.193,23.4522]
[1643524409114,1.45088386,96.267,96.193,23.2022]
[1643524409313,1.45088386,96.263,96.193,23.2022]
[1643524409713,1.70088386,96.262,96.193,23.2022]
[1643524409916,0.25,96.261,96.193,23.2022]
[1643524410314,1.70088386,96.261,96.193,23.2022]
[1643524412519,6.0,96.251,96.193,23.2022]
[1643524412917,0.25,96.25,96.193,23.2022]
[1643524413120,6.0,96.25,96.193,23.2022]
[1643524413319,0.25,96.249,96.193,23.2022]
[1643524413622,0.25,96.249,96.187,36.43695013]
[1643524413820,0.25,96.249,96.188,0.25]
[1643524414620,6.0,96.249,96.188,0.25]
[1643524414919,0.25,96.248,96.188,0.25]
[1643524415121,6.0,96.247,96.188,0.25]
[1643524415320,0.25,96.246,96.188,0.25]
[1643524415520,6.25,96.246,96.183,0.25]
[1643524415920,0.25,96.246,96.183,0.25]
[1643524416320,0.25,96.246,96.183,44.34158824]
[1643524416522,1.70088386,96.255,96.183,44.34158824]
[1643524416921,6.0,96.245,96.183,44.34158824]
[1643524417120,6.0,96.244,96.183,44.34158824]
[1643524417321,0.35,96.244,96.183,44.34158824]
[1643524417522,0.25,96.244,96.183,44.34158824]
[1643524418323,0.25,96.248,96.183,44.34158824]
[1643524420623,1.45088386,96.245,96.183,44.34158824]
[1643524420825,1.70088386,96.244,96.183,44.34158824]
[1643524421024,1.45088386,96.244,96.183,44.34158824]
[1643524421227,0.25,96.243,96.183,44.34158824]
[1643524422424,0.25,96.244,96.183,44.34158824]
[1643524423828,1.70088386,96.244,96.183,44.34158824]
[1643524424027,1.45088386,96.244,96.183,44.34158824]
[1643524424227,0.25,96.243,96.183,44.34158824]
[1643524427128,1.70088386,96.243,96.183,44.34158824]
[1643524427328,0.25,96.242,96.183,44.34158824]
[1643524427527,1.45088386,96.244,96.183,44.34158824]
[1643524427728,0.25,96.243,96.183,44.34158824]
[1643524428329,1.70088386,96.243,96.183,44.34158824]
[1643524428629,0.25,96.243,96.183,44.34158824]
[1643524429229,1.45088386,96.246,96.184,105.79405237]
[1643524429430,1.45088386,96.262,96.194,104.2]
[1643524429630,22.8771,96.279,96.2,15.03]
[1643524429631,1.45088386,96.273,96.2,15.03]
[1643524429832,0.25,96.261,96.201,0.25]
[1643524430030,0.25,96.261,96.21,6.0]
[1643524430231,0.25,96.261,96.211,24.7973]
[1643524430530,0.25,96.261,96.221,6.0]
[1643524430730,0.25,96.261,96.222,24.5283]
[1643524430929,1.45088386,96.275,96.222,30.7783]
[1643524430930,0.25,96.274,96.222,30.7783]
[1643524431129,0.25,96.274,96.222,30.5283]
[1643524431330,1.70088386,96.274,96.222,30.5283]
[1643524431532,1.70088386,96.274,96.222,24.5283]
[1643524431730,1.45088386,96.273,96.222,24.5283]
[1643524432231,1.70088386,96.272,96.212,33.8842959]
[1643524432430,1.70088386,96.272,96.222,6.0]
[1643524432632,0.25,96.272,96.223,6.0]
[1643524433230,0.25,96.274,96.223,6.0]
[1643524433930,0.25,96.275,96.213,25.2404]
[1643524434331,1.70088386,96.276,96.213,25.2404]
[1643524434531,0.25,96.276,96.213,25.2404]
[1643524435431,1.70088386,96.276,96.213,25.2404]
[1643524435632,1.80088386,96.278,96.213,25.2404]
[1643524436032,1.80088386,96.278,96.213,24.9904]
[1643524436431,1.45088386,96.276,96.213,24.9904]
[1643524436840,1.70088386,96.275,96.213,24.9904]
[1643524438243,1.45088386,96.273,96.213,24.9904]
[1643524438442,1.45088386,96.272,96.213,24.9904]
[1643524438643,0.25,96.272,96.213,24.9904]
[1643524438842,1.70088386,96.275,96.213,24.9904]
[1643524439149,0.25,96.275,96.213,24.9904]
[1643524439366,1.45088386,96.277,96.214,0.25]
[1643524439767,1.55088386,96.278,96.214,0.25]
[1643524440167,0.1,96.278,96.214,0.25]
[1643524440368,1.55088386,96.278,96.214,0.25]
[1643524440567,0.1,96.278,96.214,0.25]
[1643524440768,0.35,96.278,96.214,0.25]
[1643524440968,1.80088386,96.278,96.214,0.25]
[1643524441268,1.45088386,96.277,96.214,0.25]
[1643524441671,0.25,96.276,96.214,0.25]
[1643524442570,1.70088386,96.276,96.214,0.25]
[1643524442770,0.25,96.276,96.214,0.25]
[1643524443773,1.70088386,96.276,96.214,0.25]
[1643524443972,0.25,96.276,96.214,0.25]
[1643524444374,17.02848386,96.278,96.214,0.25]
[1643524444572,0.1,96.277,96.214,0.25]
[1643524444773,0.1,96.277,96.223,6.0]
[1643524445074,0.1,96.277,96.214,0.25]
[1643524445573,6.0,96.268,96.214,0.25]
[1643524445873,6.0,96.273,96.214,0.25]
[1643524446275,0.25,96.272,96.214,0.25]
[1643524446874,6.0,96.268,96.214,0.25]
[1643524447075,6.0,96.267,96.214,0.25]
[1643524447275,0.25,96.266,96.214,0.25]
[1643524447876,104.45,96.266,96.172,1.44969877]
[1643524448077,1.45088386,96.258,96.176,1.58956683]
[1643524448275,6.0,96.256,96.16,104.2]
[1643524448474,6.0,96.248,96.17,15.03]
[1643524448876,0.25,96.247,96.171,41.77087394]
[1643524449079,6.0,96.245,96.171,41.77087394]
[1643524449279,0.25,96.244,96.181,6.0]
[1643524449677,0.25,96.244,96.182,0.25]
[1643524450482,6.0,96.252,96.182,0.25]
[1643524450684,0.25,96.251,96.182,0.25]
[1643524451885,0.35,96.264,96.182,0.25]
[1643524452081,6.0,96.255,96.182,0.25]
[1643524452284,23.6102,96.254,96.182,0.25]
[1643524452581,0.1,96.253,96.182,0.25]
[1643524453380,0.1,96.253,96.182,24.9489]
[1643524454483,0.25,96.254,96.192,6.0]
[1643524454881,1.70088386,96.263,96.193,24.6588]
[1643524455084,6.0,96.253,96.193,24.4088]
[1643524455282,0.25,96.252,96.193,24.4088]
[1643524456183,6.0,96.247,96.193,24.4088]
[1643524456383,0.25,96.246,96.193,24.4088]
[1643524458284,0.25,96.246,96.194,0.25]
[1643524458485,0.25,96.246,96.193,24.4088]
[1643524459084,6.0,96.244,96.193,24.4088]
[1643524459285,0.25,96.243,96.193,24.4088]
[1643524459684,0.25,96.243,96.171,41.77087394]
[1643524459885,0.25,96.243,96.172,24.1205]
[1643524460084,6.25,96.243,96.172,24.1205]
[1643524460285,23.886,96.242,96.172,24.1205]
[1643524460486,0.1,96.241,96.172,24.1205]
[1643524460685,6.0,96.232,96.172,24.1205]
[1643524460885,0.25,96.231,96.172,24.1205]
[1643524462192,0.35,96.241,96.172,24.1205]
[1643524462690,0.1,96.241,96.172,24.1205]
[1643524462989,1.45088386,96.256,96.172,24.1205]
[1643524463189,1.45088386,96.257,96.172,24.1205]
[1643524463588,6.0,96.247,96.172,24.1205]
[1643524464190,0.25,96.246,96.172,24.1205]
[1643524464589,6.0,96.247,96.173,104.2]
[1643524464794,4.34107329,96.311,96.173,104.2]
[1643524464795,6.0,96.26,96.184,104.2]
[1643524464990,6.0,96.26,96.183,6.0]
[1643524464991,6.0,96.259,96.194,6.0]
[1643524465192,6.1,96.259,96.185,23.0264]
[1643524465391,6.0,96.259,96.195,6.0]
[1643524465590,6.0,96.259,96.196,23.0264]
[1643524465792,6.0,96.262,96.196,23.2764]
[1643524465991,6.0,96.263,96.196,23.0264]
[1643524466192,0.25,96.261,96.196,23.0264]
[1643524466591,6.0,96.261,96.196,23.0264]
[1643524467400,1.45088386,96.271,96.197,0.25]
[1643524467999,1.45088386,96.27,96.197,0.25]
[1643524468401,6.0,96.26,96.197,0.25]
[1643524468801,0.25,96.259,96.197,0.25]
[1643524470102,6.25,96.259,96.197,0.25]
[1643524470402,6.0,96.259,96.197,0.25]
[1643524471003,6.0,96.262,96.197,0.25]
[1643524471602,6.0,96.263,96.197,0.25]
[1643524472408,23.1421,96.262,96.197,0.25]
[1643524472608,6.0,96.258,96.197,0.25]
[1643524472806,0.25,96.257,96.197,0.25]
[1643524474127,0.35,96.261,96.197,0.25]
[1643524475627,6.0,96.252,96.197,0.25]
[1643524475828,24.5183,96.251,96.197,0.25]
[1643524476028,6.0,96.241,96.18,15.03]
[1643524476228,23.1951,96.24,96.181,22.886]
[1643524476427,0.1,96.239,96.181,23.136]
[1643524477229,1.45088386,96.254,96.181,23.136]
[1643524477429,0.25,96.253,96.181,23.136]
[1643524477636,6.0,96.247,96.181,23.136]
[1643524477933,0.25,96.246,96.181,23.136]
[1643524478131,6.0,96.245,96.181,23.136]
[1643524478331,0.25,96.244,96.181,23.136]
[1643524479134,0.25,96.244,96.181,21.886]
[1643524479532,6.0,96.242,96.181,21.886]
[1643524479733,6.0,96.242,96.182,0.25]
[1643524479934,6.0,96.24,96.182,0.25]
[1643524480136,0.35,96.241,96.182,0.25]
[1643524480332,0.25,96.241,96.182,0.25]
[1643524480533,6.0,96.242,96.18,15.03]
[1643524480734,0.25,96.241,96.18,15.03]
[1643524481133,6.0,96.238,96.18,15.03]
[1643524481535,6.0,96.24,96.181,24.7761]
[1643524481934,1.45088386,96.251,96.181,24.7761]
[1643524482136,6.0,96.241,96.181,24.7761]
[1643524483334,0.25,96.24,96.182,0.25]
[1643524483535,6.0,96.239,96.182,0.25]
[1643524484338,6.0,96.24,96.182,0.25]
[1643524484535,6.0,96.242,96.182,0.25]
[1643524485136,0.25,96.241,96.182,0.25]
[1643524486738,0.1,96.253,96.182,0.25]
[1643524486939,0.1,96.253,96.191,6.0]
[1643524487140,0.1,96.253,96.192,23.7827]
[1643524487340,0.1,96.253,96.192,24.0327]
[1643524487540,6.0,96.244,96.192,24.0327]
[1643524487941,0.25,96.243,96.192,24.0327]
[1643524488339,0.25,96.243,96.192,23.7827]
[1643524488640,0.25,96.243,96.17,30.623]
[1643524488839,0.25,96.243,96.172,23.9993]
[1643524489241,6.0,96.244,96.172,23.9993]
[1643524489642,0.25,96.243,96.172,23.9993]
[1643524491447,23.3617,96.243,96.172,23.9993]
[1643524491648,0.1,96.242,96.172,23.9993]
[1643524493548,6.0,96.233,96.172,23.9993]
[1643524493948,0.25,96.232,96.172,23.9993]
[1643524494347,24.4725,96.232,96.172,23.9993]
[1643524494548,0.1,96.231,96.172,23.9993]
[1643524497657,0.1,96.231,96.182,6.0]
[1643524497855,0.1,96.231,96.183,0.25]
[1643524498067,0.1,96.231,96.18,15.03]
[1643524498461,0.1,96.231,96.181,0.25]
[1643524500082,0.1,96.231,96.18,15.03]
[1643524500282,0.25,96.253,96.181,0.25]
[1643524500483,6.0,96.244,96.181,0.25]
[1643524500885,0.25,96.243,96.181,0.25]
[1643524501084,6.0,96.241,96.181,0.25]
[1643524501284,0.25,96.24,96.181,0.25]
[1643524501484,0.25,96.24,96.18,15.03]
[1643524501684,0.25,96.24,96.181,0.25]
[1643524502086,6.25,96.24,96.181,0.25]
[1643524502285,6.35,96.24,96.181,0.25]
[1643524502485,0.25,96.24,96.181,0.25]
[1643524502984,0.1,96.258,96.181,0.25]
[1643524502985,0.25,96.249,96.181,0.25]
[1643524503191,6.0,96.24,96.181,0.25]
[1643524503388,0.25,96.239,96.181,0.25]
[1643524504488,0.25,96.24,96.181,0.25]
[1643524504688,6.0,96.238,96.181,0.25]
[1643524504888,0.25,96.237,96.181,0.25]
[1643524506391,0.25,96.246,96.181,0.25]
[1643524507191,0.35,96.246,96.181,0.25]
[1643524509897,0.35,96.246,96.182,6.0]
[1643524510097,0.35,96.246,96.183,22.9898]
[1643524510299,0.35,96.246,96.183,23.2398]
[1643524513509,1.45088386,96.245,96.183,23.2398]
[1643524514001,0.25,96.244,96.183,23.2398]
[1643524514702,1.70088386,96.244,96.183,23.2398]
[1643524514903,0.25,96.244,96.193,6.0]
[1643524515302,1.80088386,96.246,96.194,0.25]
[1643524516302,1.80088386,96.246,96.184,0.25]
[1643524516506,1.45088386,96.245,96.193,6.0]
[1643524516705,1.45088386,96.245,96.184,0.25]
[1643524516904,0.25,96.244,96.184,0.25]
[1643524517103,1.45088386,96.243,96.184,0.25]
[1643524517306,0.25,96.242,96.184,0.25]
[1643524520906,1.45088386,96.243,96.184,0.25]
[1643524521110,0.1,96.246,96.184,0.25]
[1643524521506,0.1,96.246,96.193,6.0]
[1643524521707,0.1,96.246,96.194,24.3115]
[1643524521906,0.1,96.246,96.194,24.5615]
[1643524525836,0.35,96.246,96.194,24.5615]
[1643524529140,6.0,96.237,96.194,24.5615]
[1643524529540,0.35,96.246,96.194,24.5615]
[1643524530142,0.35,96.246,96.194,24.3115]
[1643524530341,0.35,96.246,96.173,17.36098646]
[1643524530342,6.0,96.237,96.173,17.36098646]
[1643524530543,1.45088386,96.245,96.173,17.36098646]
[1643524530743,0.25,96.236,96.173,17.36098646]
[1643524531748,0.25,96.24,96.174,0.25]
[1643524532143,0.25,96.241,96.174,0.25]
[1643524532944,0.25,96.241,96.173,17.11098646]
[1643524533344,0.25,96.242,96.173,17.11098646]
[1643524533947,0.1,96.246,96.18,15.591]
[1643524534149,0.1,96.246,96.19,21.03]
[1643524534345,0.1,96.246,96.191,24.5246]
[1643524534746,0.35,96.246,96.191,24.5246]
[1643524537849,6.0,96.237,96.191,24.5246]
[1643524538047,0.35,96.246,96.191,24.5246]
[1643524538249,0.25,96.236,96.191,24.5246]
[1643524538450,0.35,96.246,96.191,24.5246]
[1643524542958,6.0,96.237,96.191,24.5246]
[1643524543354,0.25,96.236,96.191,24.5246]
[1643524543754,0.25,96.236,96.191,24.2746]
[1643524543956,0.25,96.236,96.191,23.2746]
[1643524544358,0.35,96.246,96.191,23.2746]
[1643524544556,6.0,96.237,96.191,23.2746]
[1643524544956,0.25,96.236,96.191,23.2746]
[1643524545256,0.25,96.236,96.192,0.25]
[1643524546059,0.35,96.246,96.192,0.25]
[1643524546660,6.0,96.237,96.191,0.25]
[1643524546867,0.25,96.236,96.191,0.25]
[1643524549766,0.35,96.246,96.191,0.25]
[1643524550164,0.25,96.246,96.191,24.6318]
[1643524550366,0.25,96.25,96.191,24.6318]
[1643524550569,1.45088386,96.249,96.191,24.6318]
[1643524550767,6.0,96.241,96.191,0.25]
[1643524550964,6.0,96.239,96.191,0.25]
[1643524551366,0.25,96.238,96.191,0.25]
[1643524551567,0.25,96.238,96.181,6.0]
[1643524551798,0.25,96.238,96.182,0.25]
[1643524552003,6.25,96.238,96.181,6.0]
[1643524552399,6.0,96.237,96.181,6.0]
[1643524552600,6.0,96.235,96.181,6.0]
[1643524552799,6.0,96.228,96.181,6.0]
[1643524553200,0.25,96.227,96.181,6.0]
[1643524553400,0.25,96.227,96.182,0.25]
[1643524554402,1.45088386,96.243,96.182,0.25]
[1643524554403,0.25,96.242,96.182,0.25]
[1643524554804,0.25,96.243,96.182,0.25]
[1643524556004,1.45088386,96.245,96.182,23.1132]
[1643524556205,0.25,96.244,96.182,23.1132]
[1643524557405,22.8657,96.244,96.182,0.25]
[1643524557606,0.1,96.243,96.182,0.25]
[1643524557807,0.1,96.243,96.172,0.25]
[1643524558006,0.1,96.243,96.181,6.0]
[1643524558308,0.1,96.243,96.182,0.25]
[1643524558508,0.1,96.243,96.182,24.681]
[1643524559308,0.1,96.243,96.17,15.03]
[1643524559508,6.0,96.234,96.172,0.25]
[1643524559713,24.6746,96.233,96.172,0.25]
[1643524559909,0.1,96.232,96.172,0.25]
[1643524560910,0.1,96.232,96.172,25.1847]
[1643524563617,6.0,96.223,96.172,0.25]
[1643524563817,0.25,96.222,96.172,0.25]
[1643524565420,0.35,96.232,96.172,0.25]
[1643524568021,6.0,96.223,96.172,0.25]
[1643524568422,0.25,96.222,96.172,0.25]
[1643524569523,22.9842,96.222,96.172,0.25]
[1643524569723,0.1,96.221,96.172,0.25]
[1643524572251,6.0,96.212,96.172,0.25]
[1643524572454,0.1,96.221,96.172,0.25]
[1643524572652,6.0,96.227,96.172,0.25]
[1643524572852,1.45088386,96.245,96.181,6.0]
[1643524573053,0.1,96.246,96.172,24.3429]
[1643524573453,1.55088386,96.246,96.172,24.3429]
[1643524573654,105.65088386,96.244,96.172,24.3429]
[1643524573854,1.45088386,96.242,96.172,24.3429]
[1643524574252,0.25,96.241,96.172,24.3429]
[1643524574653,1.70088386,96.241,96.172,24.0929]
[1643524575958,1.45088386,96.24,96.173,0.25]
[1643524576158,1.45088386,96.239,96.173,0.25]
[1643524576558,1.70088386,96.238,96.173,0.25]
[1643524576758,1.80088386,96.238,96.173,0.25]
[1643524578358,0.25,96.238,96.173,0.25]
[1643524578758,1.45088386,96.238,96.173,0.25]
[1643524578960,6.0,96.23,96.173,0.25]
[1643524579361,6.0,96.226,96.173,0.25]
[1643524579761,0.25,96.225,96.172,24.0929]
[1643524579966,6.0,96.219,96.152,1.44969877]
[1643524580163,6.25,96.218,96.151,24.1416]
[1643524580362,110.45,96.218,96.151,24.1416]
[1643524580562,6.0,96.21,96.151,24.1416]
[1643524580761,25.1991,96.209,96.152,39.36193637]
[1643524580964,0.1,96.208,96.152,39.36193637]
[1643524584966,1.45088386,96.231,96.162,6.0]
[1643524585171,0.25,96.23,96.162,6.0]
[1643524585370,6.0,96.221,96.163,0.25]
[1643524585570,6.0,96.224,96.163,24.0846]
[1643524585768,0.25,96.22,96.163,24.0846]
[1643524586771,0.35,96.222,96.163,24.0846]
[1643524587170,0.35,96.222,96.163,0.25]
[1643524587370,6.0,96.213,96.153,24.7263]
[1643524587570,0.35,96.222,96.162,6.0]
[1643524587774,0.35,96.222,96.163,0.25]
[1643524588169,6.0,96.213,96.163,0.25]
[1643524588370,0.25,96.212,96.163,0.25]
[1643524589372,0.25,96.212,96.154,0.25]
[1643524589572,0.25,96.212,96.163,6.0]
[1643524589773,0.35,96.222,96.164,0.25]
[1643524589975,6.0,96.213,96.154,0.25]
[1643524590378,0.25,96.212,96.154,0.25]
[1643524591174,0.25,96.212,96.153,24.4763]
[1643524591376,0.35,96.222,96.163,6.0]
[1643524591778,26.97053718,96.259,96.163,6.0]
[1643524591779,0.25,96.231,96.163,6.0]
[1643524592076,6.0,96.223,96.163,6.0]
[1643524592375,0.25,96.222,96.163,6.0]
[1643524592577,0.25,96.222,96.164,0.25]
[1643524592980,24.7884,96.222,96.154,0.25]
[1643524593179,0.1,96.221,96.154,0.25]
[1643524593478,0.1,96.221,96.163,1.0]
[1643524593678,6.0,96.212,96.154,0.25]
[1643524593879,0.25,96.211,96.154,0.25]
[1643524598008,6.0,96.212,96.154,0.25]
[1643524598305,0.1,96.221,96.154,0.25]
[1643524598503,6.0,96.212,96.154,0.25]
[1643524602812,0.1,96.221,96.154,0.25]
[1643524603013,0.25,96.211,96.154,0.25]
[1643524603613,6.0,96.212,96.154,0.25]
[1643524603915,0.1,96.221,96.154,0.25]
[1643524604513,6.0,96.212,96.154,0.25]
[1643524606718,0.25,96.211,96.154,0.25]
[1643524607120,29.8704,96.211,96.153,24.4763]
[1643524607319,0.1,96.21,96.153,24.4763]
[1643524608620,0.1,96.21,96.154,0.25]
[1643524609028,6.0,96.209,96.153,0.25]
[1643524609221,6.0,96.201,96.153,0.25]
[1643524609621,0.25,96.2,96.153,0.25]
[1643524612329,0.1,96.21,96.162,6.0]
[1643524612531,15.599,96.24,96.163,22.9936]
[1643524612532,1.45088386,96.232,96.163,22.9936]
[1643524612730,1.45088386,96.234,96.163,24.81457439]
[1643524612932,6.0,96.222,96.173,6.0]
[1643524613130,6.0,96.224,96.173,6.0]
[1643524613332,0.25,96.231,96.174,0.25]
[1643524613530,0.25,96.231,96.174,6.25]
[1643524613729,1.45088386,96.238,96.174,6.25]
[1643524613932,0.1,96.239,96.174,6.25]
[1643524614129,6.0,96.23,96.174,0.25]
[1643524614329,6.0,96.23,96.164,1.57097439]
[1643524614330,6.0,96.23,96.165,0.25]
[1643524614930,6.0,96.229,96.165,0.25]
[1643524615131,6.1,96.229,96.165,0.25]
[1643524615331,6.0,96.229,96.165,0.25]
[1643524615560,6.0,96.23,96.165,0.25]
[1643524616358,6.0,96.23,96.164,1.57097439]
[1643524616557,6.0,96.23,96.165,0.25]
[1643524617960,6.0,96.23,96.164,0.25]
[1643524618159,6.0,96.23,96.173,6.0]
[1643524618360,6.0,96.23,96.174,0.25]
[1643524618860,24.8401,96.229,96.174,0.25]
[1643524619060,0.1,96.228,96.174,0.25]
[1643524619460,0.1,96.228,96.164,0.25]
[1643524620863,104.3,96.228,96.147,1.44969877]
[1643524621062,104.3,96.228,96.134,1.57097439]
[1643524621063,110.2,96.218,96.137,1.44969877]
[1643524621365,0.35,96.217,96.133,1.44969877]
[1643524621562,104.2,96.21,96.132,1.44969877]
[1643524621762,0.1,96.209,96.131,25.47399877]
[1643524621960,6.0,96.2,96.133,38.7067138]